Workbook

Sheet 31.03.2016
A1: XXXXXXXXXXXXX
A2: Profit & Loss Account for the year ending 31-03-2016
A3: Opening Stock | B3: 212200 | D3: Sales | E3: 1625220
A4: Purchase | B4: 495450 | D4: Closing Stock | E4: 220550
A5: Direct Expenses | B5: =329500 -> 329500
A6: Gross Profit | B6: =E8-SUM(B3:B5) -> 808620
B8: =SUM(B3:B7) -> 1845770 | E8: =SUM(E3:E7) -> 1845770
A10: Staff Salary | B10: =70880 -> 70880 | D10: Gross Profit | E10: =B6 -> 808620
A11: Administration Expense | B11: =52556 -> 52556 | D11: Other Income | E11: 19250
A12: Rent & Electricity | B12: 175450
A13: Conveyance & Travelling | B13: =25202 -> 25202
A14: Net Profit | B14: =E16-SUM(B10:B13) -> 503782
B16: =SUM(B10:B14) -> 827870 | E16: =SUM(E10:E15) -> 827870
A20: Balancesheet as on 31-03-2016
A22: Capital | B22: 500000 | D22: Closing Stock | F22: ='31.03.2016'!E4 -> 220550
A23: Add- Net Profit | B23: ='31.03.2016'!B14 -> 503782 | D23: Sundry Debtor | F23: ='31.03.2016'!E3/12 -> 135435
A24: Less- Drawings | B24: 360000 | C24: =B22+B23-B24 -> 643782 | D24: Cash in Hand | F24: =F27-F22-F23 -> 370372
A25: Creditors | C25: ='31.03.2016'!B4/12*2 -> 82575
C27: =C24+C25 -> 726357 | F27: =C27 -> 726357

Sheet 31.03.2018
A1: XXXXXXXXXX
A2: Profit & Loss Account for the year ending 31-03-2018
A3: Opening Stock | B3: 325220 | C3: Sales | E3: 12721550
A4: Purchase | B4: 10702200 | C4: Closing Stock | E4: 255220
A5: Direct Expenses | B5: =955220-75340-5100 -> 874780
A6: Gross Profit | B6: =E8-SUM(B3:B5) -> 1074570
B8: =SUM(B3:B7) -> 12976770 | E8: =SUM(E3:E7) -> 12976770
A10: Staff Salary | B10: =120520 -> 120520 | C10: Gross Profit | E10: =B6 -> 1074570
A11: Administration Expense | B11: =95252 -> 95252 | C11: Other Income | E11: =36592 -> 36592
A12: Rent & Electricity | B12: =165250-45380 -> 119870
A13: Conveyance & Travelling | B13: =120520 -> 120520
A14: Net Profit | B14: =E16-SUM(B10:B13) -> 655000
A16: Total | B16: =SUM(B10:B14) -> 1111162 | C16: Total | E16: =SUM(E10:E15) -> 1111162
A18: Balancesheet as on 31-03-2018
A19: Capital | B19: =643782 -> 643782 | D19: Closing Stock | E19: =E4 -> 255220
A20: Add- Net Profit | B20: =B14 -> 655000 | D20: Sundry Debtor | E20: =368520 -> 368520
A21: Less- Drawings | B21: =385200 -> 385200 | C21: =B19+B20-B21 -> 913582 | D21: Cash & Bank | E21: =E24-E19-E20 -> 392342
A22: Creditors | C22: =102500 -> 102500
A24: Total | C24: =C21+C22 -> 1016082 | D24: Total | E24: =C24 -> 1016082
A26: For Abhilesh Jha & Company | D26: xxxxxx
D29: Prop.
D30: xxxxxx
A33: Date: 01/10/2018
A34: Place: Delhi

Sheet Sheet3
